[Event "Karel Janecek Open 2025"]
[Site "Prague"]
[Date "2025.02.27"]
[Round "1.6"]
[White "Avadhoot Lokesh Bhakti Brahme"]
[Black "Raja Rithvik R"]
[Result "0-1"]
[Annotator "TA"]
[ECO "D30"]
[WhiteElo "2000"]
[BlackElo "2522"]
[PlyCount "76"]
[EventDate "2025.02.21"]
[EventType "swiss"]
[EventCountry "CZE"]
[SourceTitle "playchess.com"]
[Source "ChessBase"]
[SourceQuality "1"]
[TimeControl "40/5400+30:1800+30"]

{[%evp 9,76,0,0,0,12,-32,-4,-14,-10,-8,0,0,-9,0,-5,-8,-8,-16,0,-39,-44,-54,-45,-104,-70,-249,-253,-256,-237,-219,-237,-275,-268,-273,-249,-273,-228,-220,-216,-228,-218,-227,-231,-228,-224,-226,-225,-212,-211,-214,-213,-262,-274,-266,-276,-307,-308,-350,-356,-479,-490,-508,-500,-565,-583,-569,-592,-600,-600]} 1. d4 {[%emt 0:00:33]} d5 {[%emt 0:00:55]} 2. c4 {[%emt 0:00:15]} e6 {[%emt 0:00:03]} 3. Nf3 {[%emt 0:00:36]} c6 {[%emt 0:00:39]} 4. g3 {[%emt 0:03:28]} dxc4 {[%emt 0:00:16]} 5. Bg2 {[%emt 0:00:06]} b5 {[%emt 0:01:16]} 6. Ne5 {[%emt 0:02:36] D30: Queen's Gambit Declined: Systems without Nc3.} Bb7 {[%emt 0:02:33]} 7. a4 {[%emt 0:00:51] [#]} a6 {[%emt 0:08:28]} 8. O-O {[%emt 0:11:48] The position is equal.} Nf6 {[%emt 0:00:11]} 9. b3 {[%emt 0:06:40]} (9. axb5 axb5 10. Rxa8 Bxa8 11. Nc3) 9... cxb3 {[%emt 0:00:27]} 10. Qxb3 {[%emt 0:00:05]} Qxd4 {[%emt 0:07:56]} 11. Bb2 {[%emt 0:00:35] White sacrificed a pawn. A sharp opening} Qb4 {[%emt 0:00:10]} 12. Qc2 {[%emt 0:00:14] [#] and axb5 would now be decisive} (12. Qxb4 Bxb4 13. axb5 axb5 14. Rxa8 Bxa8 15. Na3) 12... Qc5 {[%emt 0:00:23]} 13. Qd3 {[%emt 0:11:02] 13.Qd3 scores better than 13.Qb3.} (13. Qxc5 {simplifies} Bxc5 14. Rc1 Nbd7 15. Nd3) 13... Be7 {[%emt 0:00:22]} 14. Rd1 $146 {[%emt 0:11:35][%cal Ob1c3]} (14. Nd2 Nd5 15. Rfc1 Qb6 16. Nec4 bxc4 17. Nxc4 Nb4 18. Qb1 Qc5 19. Bxg7 Rg8 20. Qxh7 Rxg7 21. Qxg7 {1-0 Esipenko,A (2675)-Keymer,V (2690) Duesseldorf WR Masters 2023 (1)}) 14... O-O {[%emt 0:05:17]} 15. Na3 {[%emt 0:09:16]} Qb6 {[%emt 0:05:13]} (15... bxa4 16. Bd4 Qa5 17. Nac4 $11) 16. Qf3 {[%emt 0:12:28]} (16. Qb3 $1 $15) 16... Ra7 {[%emt 0:04:50] And now ...c5 would win.} (16... bxa4 17. Nec4 (17. Nac4 Qb3 $11) 17... Qc5 18. Bd4 $16) 17. Ng4 $2 {[%emt 0:02:53] Now White is beyond hope.} (17. Qb3 $15 Ba8 18. Bd4) 17... c5 $19 {[%emt 0:06:30]} (17... bxa4 $2 {too greedy.} 18. Nxf6+ (18. Bxf6 c5 $18) 18... gxf6 19. Bxf6 Bxf6 20. Qxf6 $18) 18. Qf4 {[%emt 0:02:29]} Nxg4 {[%emt 0:04:25]} 19. Qxg4 {[%emt 0:00:07][%csl Gb2][%cal Rg4g7]} g6 {[%emt 0:00:10]} 20. Qf4 {[%emt 0:03:19][%cal Oa4a5]} Bxg2 {[%emt 0:01:15]} 21. Kxg2 {[%emt 0:00:01]} Nc6 {[%emt 0:07:11]} 22. Rab1 {[%emt 0:02:14]} Nd4 {[%emt 0:02:18]} 23. f3 {[%emt 0:09:53]} Rd8 {[%emt 0:07:05]} (23... Nxe2 24. Qe5 Nd4 25. Rxd4 $17) 24. Nc4 {[%emt 0:07:23]} Qc7 {[%emt 0:03:18]} ({But not} 24... bxc4 25. Bxd4) 25. Qxc7 {[%emt 0:01:29]} Rxc7 {[%emt 0:00:03]} 26. axb5 {[%emt 0:00:07]} axb5 {[%emt 0:00:25]} 27. Bxd4 {[%emt 0:00:20]} Rxd4 {[%emt 0:02:42]} 28. Rxd4 {[%emt 0:00:16]} cxd4 {[%emt 0:00:04][%mdl 4096] Endgame KRB-KRN. Black is two pawns up.} 29. Ne5 {[%emt 0:00:39]} b4 {[%emt 0:02:24]} 30. Kf2 {[%emt 0:01:12]} Bd6 {[%emt 0:00:50]} 31. Nd3 {[%emt 0:00:08]} e5 {[%emt 0:00:04]} 32. Ke1 {[%emt 0:01:17]} f5 {[%emt 0:00:47]} 33. Rb2 {[%emt 0:00:16]} Rb7 {[%emt 0:00:54]} 34. Nf2 {[%emt 0:00:39]} Kf7 {[%emt 0:00:23] Black is clearly winning.} 35. Kd2 {[%emt 0:00:34]} Ke6 {[%emt 0:00:07]} 36. Kd3 {[%emt 0:00:11]} Kd5 {[%emt 0:00:25]} 37. e4+ {[%emt 0:00:54]} dxe3 {[%emt 0:00:06]} 38. Nd1 {[%emt 0:00:08]} f4 {[%emt 0:00:14] Weighted Error Value: White=0.29 (precise) /Black=0.07 (flawless)   Loses game:     	White=1     	---        Mistake:       	White=1     	---        Inaccurate:     	White=3     	Black=2      OK:         	White=11    	Black=23     Best:        	White=1     	---} 0-1

[Event "Karel Janecek Open 2025"]
[Site "Prague"]
[Date "2025.02.27"]
[Round "1.7"]
[White "Beerdsen, Thomas"]
[Black "Korszanski, Stanislaw"]
[Result "1-0"]
[Annotator "TA"]
[ECO "C48"]
[WhiteElo "2511"]
[BlackElo "1998"]
[PlyCount "75"]
[EventDate "2025.02.21"]
[EventType "swiss"]
[EventCountry "CZE"]
[SourceTitle "playchess.com"]
[Source "ChessBase"]
[SourceQuality "1"]
[TimeControl "40/5400+30:1800+30"]

{[%evp 10,75,-18,4,-10,-12,0,6,-1,-3,-4,-32,16,-16,-13,-17,20,23,30,23,32,0,0,0,0,0,20,28,54,10,8,0,111,113,12,11,369,369,369,362,345,-34,344,344,511,517,504,485,481,477,462,469,474,475,476,464,475,474,5406,5398,5297,5181,5181,1646,29963,29962,29967,29967]} 1. e4 {[%emt 0:01:01]} e5 {[%emt 0:00:49]} 2. Nf3 {[%emt 0:00:20]} Nc6 {[%emt 0:00:19]} 3. Nc3 {[%emt 0:00:30]} Nf6 {[%emt 0:00:14]} 4. Bb5 {[%emt 0:00:15]} Bc5 {[%emt 0:01:07]} 5. Nxe5 {[%emt 0:00:12]} Nxe5 {[%emt 0:00:30]} 6. d4 {[%emt 0:00:07]} Bd6 {[%emt 0:00:07] C48: Four Knights: 4 Bb5, replies other than 4...Bb4.} 7. O-O {[%emt 0:00:17]} c6 {[%emt 0:06:16]} 8. dxe5 {[%emt 0:01:35]} Bxe5 {[%emt 0:00:05] The position is equal.} 9. Bd3 {[%emt 0:00:14]} O-O {[%emt 0:01:48]} 10. h3 {[%emt 0:15:57]} h6 $146 {[%emt 0:09:37]} (10... Re8 $15) ({Predecessor:} 10... Re8 11. Re1 Qa5 12. a4 d6 13. Bd2 Bd7 14. f4 Bd4+ 15. Kh2 Qd8 16. Qf3 a5 {1-0 Goehring,D-Berles,R Theme 23231 freechess.de 2021}) 11. Qf3 {[%emt 0:04:12]} Re8 {[%emt 0:09:27]} 12. Bf4 {[%emt 0:00:33]} Bxc3 {[%emt 0:05:52]} 13. bxc3 {[%emt 0:00:07]} d5 {[%emt 0:00:24]} 14. e5 {[%emt 0:00:47]} (14. Rfd1 $5) 14... Nd7 {[%emt 0:00:36]} 15. Qh5 {[%emt 0:15:01]} Nc5 {[%emt 0:02:44]} 16. Rae1 {[%emt 0:01:15]} Nxd3 {[%emt 0:02:46]} 17. cxd3 {[%emt 0:00:05]} d4 {[%emt 0:01:16] Against Re3} 18. c4 {[%emt 0:05:06]} b5 {[%emt 0:03:53]} 19. cxb5 {[%emt 0:05:52]} (19. Bxh6 $5 gxh6 20. f4 $14) 19... cxb5 {[%emt 0:00:04]} 20. Bd2 {[%emt 0:01:53]} a5 {[%emt 0:07:55] [#]} (20... Qd5 $11) 21. f4 $1 $16 {[%emt 0:05:34] White is more active.} Qd5 {[%emt 0:00:15][%cal Oa8a6]} 22. f5 {[%emt 0:12:49][%cal Od2h6] Bxh6! would now be deadly.} Rxe5 $2 {[%emt 0:05:26][%mdl 8192]} (22... Qxa2 23. Bxh6 gxh6 24. Qxh6 $18) (22... Bb7 $1 $11 {and Black is okay.} 23. Qg4 h5) 23. Rxe5 $18 {[%emt 0:01:11]} Qxe5 {[%emt 0:00:05]} 24. Re1 {[%emt 0:00:09][%cal Bf1e1,Be1e8,Be8f8,Bf8f7,Bf7b7][%mdl 32]} Qf6 {[%emt 0:00:21][%cal Oc8d7] [#]} 25. Re8+ $1 {[%emt 0:00:56]} Kh7 {[%emt 0:00:05]} 26. Rf8 {[%emt 0:00:20]} Bb7 {[%emt 0:14:35]} (26... Qxf5 $142 27. Qxf5+ (27. Qxf7 Qxf7 28. Rxf7 Be6 $17) 27... Bxf5 28. Rxa8 Bxd3 29. Rxa5 (29. Bxa5 Bc4 $18) 29... Kg6) 27. Rxf7 {[%emt 0:00:06]} Qc6 {[%emt 0:00:12][%csl Gb7][%cal Rc6g2] [#]} 28. Qg6+ {[%emt 0:00:36][%mdl 512]} Qxg6 {[%emt 0:00:04]} 29. fxg6+ {[%emt 0:00:04]} Kxg6 {[%emt 0:00:03]} 30. Rxb7 {[%emt 0:00:06][%mdl 4096] Endgame KRB-KR} b4 {[%emt 0:00:05]} 31. Rb5 {[%emt 0:00:57]} Ra6 {[%emt 0:00:43]} 32. Kf2 {[%emt 0:00:36]} Rf6+ {[%emt 0:00:04]} 33. Ke2 {[%emt 0:00:07]} Rf5 {[%emt 0:00:03]} (33... Re6+ $142 34. Kd1 Ra6) 34. Rxf5 {[%emt 0:00:40]} Kxf5 {[%emt 0:00:04]} 35. Kd1 {[%emt 0:00:23]} Ke5 {[%emt 0:00:04]} 36. Kc2 {[%emt 0:00:04] Threatening mate with Kb3.} Kd5 {[%emt 0:00:02]} 37. Kb3 {[%emt 0:00:05]} Kc5 {[%emt 0:00:02]} 38. a3 {[%emt 0:00:14] Weighted Error Value: White=0.07 (flawless) /Black=0.66  Loses game:     	---       	Black=2      Mistake:       	---       	Black=4      Inaccurate:     	White=4     	Black=2      OK:         	White=10    	Black=9      Best:        	White=4     	Black=1      Strong:       	White=2     	---} 1-0

[Event "Karel Janecek Open 2025"]
[Site "Prague"]
[Date "2025.02.27"]
[Round "1.8"]
[White "Monteverde, Jonathan"]
[Black "Noe, Christopher"]
[Result "0-1"]
[Annotator "TA"]
[ECO "E32"]
[WhiteElo "1998"]
[BlackElo "2511"]
[PlyCount "70"]
[EventDate "2025.02.21"]
[EventType "swiss"]
[EventCountry "CZE"]
[SourceTitle "playchess.com"]
[Source "ChessBase"]
[SourceQuality "1"]
[TimeControl "40/5400+30:1800+30"]

{[%evp 21,70,112,96,79,190,185,183,187,184,189,246,245,268,267,372,171,122,186,204,41,47,12,13,10,9,-67,-78,-80,-85,-131,-57,-154,-93,-174,-177,-194,-208,-511,-488,-1953,-1937,-1763,-1753,-1038,-937,-5481,-806,-991,-954,-1639,-1600]} 1. d4 {[%emt 0:00:03]} Nf6 {[%emt 0:00:58]} 2. c4 {[%emt 0:00:07]} e6 {[%emt 0:00:07]} 3. Nc3 {[%emt 0:00:08]} Bb4 {[%emt 0:00:08]} 4. Qc2 {[%emt 0:00:06]} O-O {[%emt 0:01:45]} 5. Nf3 {[%emt 0:01:30]} b6 {[%emt 0:01:34]} 6. e4 {[%emt 0:00:25][%cal Be2e4,Be4e5][%mdl 32]} d5 {[%emt 0:15:07]} 7. e5 {[%emt 0:02:55]} Ne4 {[%emt 0:00:36]} 8. Bd3 {[%emt 0:01:39]} Bb7 {[%emt 0:09:00]} 9. O-O {[%emt 0:05:55]} Bxc3 {[%emt 0:16:24]} 10. bxc3 {[%emt 0:00:35]} c5 {[%emt 0:00:59]} 11. cxd5 {[%emt 0:33:04]} exd5 {[%emt 0:00:53]} 12. Nd2 {[%emt 0:00:31] E32: Nimzo-Indian: Classical (4 Qc2): 4...0-0.} Nxd2 {[%emt 0:12:34]} (12... f5 $16) 13. Bxh7+ $18 {[%emt 0:09:30] A sharp opening A strong pair of Bishops.} (13. Bxd2 h6 14. dxc5 bxc5 $16) (13. Qxd2 $6 Ba6 $16) 13... Kh8 {[%emt 0:00:08]} 14. Bxd2 {[%emt 0:00:07] White is clearly better.} cxd4 {[%emt 0:02:30]} 15. cxd4 $146 {[%emt 0:01:01]} (15. Qf5 Qh4 16. Bg6 Nc6 17. Bxf7 dxc3 18. Bxc3 d4 19. Bd2 Ne7 20. Qh5+ Qxh5 21. Bxh5 {1-0 Harazinska,M (1902)-Borkowski,K (2006) Mazowiec-chT 1718 2017 (5.2)}) 15... Nc6 {[%emt 0:04:11] [#]} (15... Qh4 $142) 16. Bd3 $1 {[%emt 0:12:47]} Qh4 {[%emt 0:00:54]} 17. f4 {[%emt 0:02:34]} Nxd4 {[%emt 0:01:45]} 18. Qc3 {[%emt 0:06:34]} (18. Qb2 $142 Ne6 19. Rf3 (19. f5 Qd4+ 20. Qxd4 Nxd4 $18)) 18... Ne6 {[%emt 0:01:19]} 19. f5 {[%emt 0:10:06]} d4 {[%emt 0:07:12]} 20. Qc2 {[%emt 0:03:30]} (20. Qa3 $18 Nc5 21. Rf4) 20... Qg4 $1 $14 {[%emt 0:03:53][%csl Gb7][%cal Rg4g2]} 21. Bc1 {[%emt 0:00:24]} (21. fxe6 $2 Qxg2#) 21... Rac8 $1 {[%emt 0:01:45]} 22. Qd2 {[%emt 0:01:46]} Rc3 {[%emt 0:03:09][%cal Oc3d3] And now ...Rxd3! would win.} 23. fxe6 {[%emt 0:02:55] [#]} (23. h3 $11 Qg3 24. fxe6 Rxd3 25. Qe2) 23... Rxd3 $1 $40 {[%emt 0:00:07][%mdl 128] White is in trouble.} 24. Qg5 {[%emt 0:00:12] White is weak on the light squares} Qxe6 {[%emt 0:01:24]} 25. Bf4 {[%emt 0:03:56]} (25. Bb2) 25... Rc3 {[%emt 0:08:08]} (25... Kg8 $17 26. a4 Rc3) 26. Rac1 {[%emt 0:00:33]} ({White should play} 26. Bd2 $1 $15) 26... Rc5 {[%emt 0:01:26] Active counter play!} (26... Re8 $142 27. h4 Qxa2) 27. Bd2 {[%emt 0:00:30]} (27. Rcd1 $17) 27... Rxe5 $19 {[%emt 0:00:34]} ({Don't do} 27... Qxa2 28. Ra1 Qd5 29. Rxa7 $17) 28. Qh4+ {[%emt 0:00:26]} Kg8 {[%emt 0:00:08]} 29. Qxd4 $2 {[%emt 0:00:13] [#]} (29. Qg3 {is tougher.}) 29... Re4 $1 {[%emt 0:00:55] Black is clearly winning.} 30. Qb2 {[%emt 0:00:48]} (30. Qd3 $142 Re2 (30... Qxa2 $2 31. Rc7 $19) 31. Rf2 Rxf2 32. Kxf2) 30... Re2 {[%emt 0:00:33]} 31. Rf2 {[%emt 0:00:18]} Rxf2 {[%emt 0:00:16]} 32. Kxf2 {[%emt 0:00:05]} Qe4 {[%emt 0:01:14]} 33. Rg1 {[%emt 0:00:20]} Rc8 {[%emt 0:01:02]} (33... Qh4+ $142 34. Ke2 Re8+ (34... Qxh2 $2 35. Qd4 $19) 35. Kd1 Qf2 (35... Qxh2 $2 36. Qd4 $19)) 34. Qb3 {[%emt 0:01:25]} Qf5+ {[%emt 0:01:05]} 35. Kg3 {[%emt 0:00:25]} Rd8 {[%emt 0:00:08] Weighted Error Value: White=1.27/Black=0.41  Missed win:     	White=1     	---        Mistake:       	White=7     	Black=4      Inaccurate:     	White=1     	Black=1      OK:         	White=6     	Black=4      Best:        	White=1     	Black=3      Strong:       	White=1     	Black=3      Brilliant:      	---       	Black=1} 0-1

[Event "Karel Janecek Open 2025"]
[Site "Prague"]
[Date "2025.02.27"]
[Round "1.9"]
[White "Popovic, Dusan"]
[Black "Ilandzis, Spyridon"]
[Result "1-0"]
[Annotator "TA"]
[ECO "B01"]
[WhiteElo "2494"]
[BlackElo "1996"]
[PlyCount "59"]
[EventDate "2025.02.21"]
[EventType "swiss"]
[EventCountry "CZE"]
[SourceTitle "playchess.com"]
[Source "ChessBase"]
[SourceQuality "1"]
[TimeControl "40/5400+30:1800+30"]

{[%evp 18,59,70,61,65,66,181,182,166,177,249,240,374,339,349,375,374,373,375,371,327,373,382,382,401,286,283,228,263,254,316,366,379,303,312,290,610,529,29987,29988,29988,29989,29992,29993]} 1. e4 {[%emt 0:00:04]} d5 {[%emt 0:01:02]} 2. exd5 {[%emt 0:00:07]} Qxd5 {[%emt 0:00:24]} 3. Nc3 {[%emt 0:00:06]} Qa5 {[%emt 0:00:09]} 4. d4 {[%emt 0:00:12]} Nf6 {[%emt 0:00:21]} 5. Nf3 {[%emt 0:00:12][%cal Bg1f3,Bf3e5,Be5c4,Bc4d2][%mdl 32]} Bg4 {[%emt 0:00:56][%cal Bc8g4,Bg4h5,Bh5g6,Bg6e4][%mdl 32]} 6. h3 {[%emt 0:00:35]} Bh5 {[%emt 0:00:34]} 7. g4 {[%emt 0:00:36]} Bg6 {[%emt 0:00:08]} 8. Ne5 {[%emt 0:00:27]} e6 {[%emt 0:00:36]} 9. Nc4 {[%emt 0:02:23]} Qa6 {[%emt 0:00:19]} 10. h4 {[%emt 0:00:43][%cal Bh3h4,Bh4h5][%mdl 32]} Bb4 $1 {[%emt 0:01:38] B01: Scandinavian Defence.} 11. Rh3 {[%emt 0:00:57] And now Nd2 would win.} Qc6 {[%emt 0:17:44]} ({Black should try} 11... h5 $14) 12. h5 $18 {[%emt 0:09:11]} Be4 {[%emt 0:01:22] [#] White is clearly better.} 13. Nd2 $1 {[%emt 0:05:16]} a6 {[%emt 0:06:18] [#] Inhibits Bb5.} (13... O-O) 14. a3 $1 {[%emt 0:09:31]} Bd6 $146 {[%emt 0:15:35]} (14... Ba5 {is a better defense.} 15. b4 Bg2) ({Predecessor:} 14... Ba5 15. b4 Bg2 16. d5 Bxd5 17. bxa5 Bg2 18. Bxg2 Qxg2 19. Qf3 Qxf3 20. Nxf3 Nxg4 {1-0 Belov,D (2140)-Dantas,C (2086) IECC KO email 1999}) 15. Ndxe4 {[%emt 0:24:43]} (15. g5 Bf5 $18) 15... Nxe4 {[%emt 0:00:28]} 16. Bg2 {[%emt 0:00:10][%cal Bf1g2,Bg2e4,Be4b7,Bb7c6][%mdl 32]} f5 {[%emt 0:00:34]} 17. gxf5 {[%emt 0:00:08]} exf5 {[%emt 0:00:33]} 18. Nxe4 {[%emt 0:00:17]} fxe4 {[%emt 0:01:04] [#]} 19. Bxe4 $1 {[%emt 0:00:07][%mdl 512]} Qd7 {[%emt 0:08:44]} (19... Qxe4+ 20. Re3) 20. Rf3 {[%emt 0:00:44]} (20. Bxb7 Qxh3 21. Bxa8 (21. Qe2+ Kd7 $16) 21... c6 $14) 20... Nc6 {[%emt 0:14:20]} 21. Bg5 {[%emt 0:10:16]} Ne7 {[%emt 0:08:39] Dodges Bf5} 22. Bxe7 {[%emt 0:07:25]} Bxe7 {[%emt 0:00:55]} 23. Qd3 {[%emt 0:00:31]} ({Don't take} 23. Bxb7 Rb8 $18) 23... Qg4 {[%emt 0:06:33]} 24. Bxb7 {[%emt 0:05:39]} Rb8 {[%emt 0:01:26]} 25. Bc6+ {[%emt 0:00:26]} ({Not} 25. Bxa6 Rxb2 26. h6 gxh6 $18) 25... Kd8 {[%emt 0:00:09]} 26. O-O-O {[%emt 0:01:01]} Qxh5 $2 {[%emt 0:00:51] Black is weak on the light squares} (26... Rb6) 27. Kb1 {[%emt 0:02:13] Active counter play!} Rf8 {[%emt 0:06:14]} 28. Rxf8+ {[%emt 0:01:05] White mates.} Bxf8 {[%emt 0:00:02]} 29. Re1 {[%emt 0:00:46]} Be7 {[%emt 0:00:35]} 30. Qc4 {[%emt 0:00:40] White took control after the opening.   Weighted Error Value: White=0.14 (very precise) /Black=0.89  Mistake:       	---       	Black=4      Inaccurate:     	---       	Black=1      OK:         	White=7     	Black=4      Best:        	---       	Black=2      Strong:       	White=2     	---} 1-0

[Event "Karel Janecek Open 2025"]
[Site "Prague"]
[Date "2025.02.27"]
[Round "1.10"]
[White "Hollmann, Thomas"]
[Black "Ghazarian, Kirk"]
[Result "0-1"]
[Annotator "TA"]
[ECO "B90"]
[WhiteElo "1994"]
[BlackElo "2493"]
[PlyCount "108"]
[EventDate "2025.02.21"]
[EventType "swiss"]
[EventCountry "CZE"]
[SourceTitle "playchess.com"]
[Source "ChessBase"]
[SourceQuality "1"]
[TimeControl "40/5400+30:1800+30"]

{[%evp 11,108,11,47,42,29,4,0,7,0,20,31,27,19,18,34,10,13,0,13,-31,-19,-32,-41,-85,21,21,19,-54,-53,-34,-47,-43,7,-115,-102,-84,-79,-80,-30,-32,-37,-155,-37,-30,-16,-25,-21,-21,-16,-18,-25,-20,-16,-16,-16,-21,-4,-9,0,0,52,54,52,54,53,56,47,47,193,164,180,184,285,281,282,278,280,224,293,291,280,279,255,247,275,128,150,-146,-154,-773,-739,-1055,-1030,-924,-802,-5531,-5197,-29994,-29995]} 1. e4 {[%emt 0:05:25]} c5 {[%emt 0:01:05]} 2. Nf3 {[%emt 0:00:06]} d6 {[%emt 0:00:31]} 3. d4 {[%emt 0:00:04]} cxd4 {[%emt 0:00:04]} 4. Nxd4 {[%emt 0:00:04]} Nf6 {[%emt 0:00:06]} 5. Nc3 {[%emt 0:00:04]} a6 {[%emt 0:00:24]} 6. h3 {[%emt 0:00:09]} g6 {[%emt 0:00:41]} 7. Be3 {[%emt 0:00:14] B90: Sicilian Najdorf: Unusual White 6th moves, 6 Be3 Ng4 and 6 Be3 e5.} Bg7 {[%emt 0:00:42]} 8. Qd2 {[%emt 0:00:17]} b5 {[%emt 0:01:37]} 9. f3 {[%emt 0:01:03] The position is equal.} Bb7 {[%emt 0:01:30]} 10. O-O-O {[%emt 0:01:19]} h5 {[%emt 0:01:26]} 11. Kb1 {[%emt 0:06:48]} Nbd7 {[%emt 0:00:39]} 12. Bd3 {[%emt 0:05:44]} h4 {[%emt 0:02:02]} 13. Qf2 {[%emt 0:01:53]} b4 $146 {[%emt 0:02:26]} ({Predecessor:} 13... Qc7 14. Rhe1 Rb8 15. Nce2 Ne5 16. Bg5 Nc4 17. Bxh4 O-O 18. g4 Rfc8 19. Bg3 Nd7 {½-½ Han,J (2199)-Teh,R (2080) World ol U16 2023 (8.10)}) 14. Nce2 {[%emt 0:04:56]} Qc7 {[%emt 0:06:10]} 15. Rc1 {[%emt 0:07:23]} d5 {[%emt 0:09:15]} 16. exd5 {[%emt 0:07:09]} Nxd5 {[%emt 0:01:32]} 17. Bg5 {[%emt 0:03:30]} e5 {[%emt 0:13:25]} (17... Qb6 $1 $17 18. Bxh4 e6) 18. Nb3 {[%emt 0:00:44][%cal Oh1d1]} a5 {[%emt 0:04:50]} 19. Bb5 {[%emt 0:07:20]} (19. c3 $1 $11 O-O 20. Rhd1 (20. Bxh4 Qd6 $15) (20. Qxh4 Qb6 $15)) 19... O-O $1 $15 {[%emt 0:01:04]} 20. Bxd7 {[%emt 0:17:06]} Qxd7 {[%emt 0:00:15]} 21. Nc5 $1 {[%emt 0:02:38]} Qb5 {[%emt 0:00:49]} (21... Qc8 $15) 22. Nxb7 {[%emt 0:00:51]} (22. c4 $1 $11 {keeps the balance.} bxc3 23. Nxc3 Nxc3+ 24. Rxc3) 22... Qxb7 $17 {[%emt 0:00:29]} 23. c4 {[%emt 0:04:46] Black has space advantage and is better} bxc3 {[%emt 0:03:02]} 24. Nxc3 {[%emt 0:00:10] [#]} Nxc3+ {[%emt 0:01:49]} (24... e4 $1 $17 25. Nxe4 Rab8) 25. Rxc3 $11 {[%emt 0:00:06]} e4 {[%emt 0:00:20]} 26. Rb3 {[%emt 0:01:15]} (26. Rc2 $1 $15) 26... Qd5 {[%emt 0:00:10]} (26... Qa6 $17 {aiming for ...a4.} 27. Rd1 a4) 27. Qd2 $1 $15 {[%emt 0:03:23]} Qf5 {[%emt 0:08:17]} (27... Qe6 {feels hotter.} 28. Re1 a4 29. Rb4 e3) 28. Qf4 {[%emt 0:02:41]} Qxf4 {[%emt 0:02:38]} 29. Bxf4 {[%emt 0:00:02]} a4 {[%emt 0:00:07]} 30. Re3 {[%emt 0:04:41]} exf3 {[%emt 0:00:13]} 31. Rxf3 {[%emt 0:01:28]} Rfe8 {[%emt 0:00:19]} 32. Rf2 {[%emt 0:03:28] Prevents Re2.} Re4 {[%emt 0:00:47]} 33. Rhf1 {[%emt 0:01:13]} Ra5 {[%emt 0:01:45]} 34. Bc1 {[%emt 0:04:46]} Ra7 {[%emt 0:08:40]} 35. Rf4 {[%emt 0:02:03]} f5 {[%emt 0:05:41]} ({Black should play} 35... Re2 $11) 36. Rxe4 $1 $14 {[%emt 0:00:37]} fxe4 {[%emt 0:00:01][%mdl 4096] Endgame KRB-KRB} 37. Re1 {[%emt 0:00:29]} (37. Rf4 Re7 38. Rf2 Be5 $11) 37... Re7 {[%emt 0:00:18]} 38. Bg5 {[%emt 0:00:12][%csl LRe7,LRh4] Wards off Bf6} Rb7 {[%emt 0:01:05]} 39. Re2 {[%emt 0:00:30]} a3 {[%emt 0:01:27]} (39... Kh7 $14) 40. b3 $1 $18 {[%emt 0:00:29]} Rd7 {[%emt 0:02:28]} 41. Bc1 {[%emt 0:21:40]} (41. Rxe4 Rd1+ 42. Bc1 (42. Kc2 Ra1 $17) 42... Bb2 $17) 41... Re7 {[%emt 0:02:10]} (41... e3 {was necessary.} 42. Rxe3 (42. Bxe3 Re7 $18) 42... Bh6) 42. Bxa3 {[%emt 0:00:24]} Re6 {[%emt 0:00:01]} 43. Bb2 {[%emt 0:00:48]} Bf8 {[%emt 0:00:12]} 44. Bc1 {[%emt 0:02:09]} Be7 {[%emt 0:00:29]} 45. a4 {[%emt 0:00:20]} Kf7 {[%emt 0:00:14]} 46. Bd2 {[%emt 0:01:03]} Kf6 {[%emt 0:00:36]} 47. Bc3+ {[%emt 0:01:48]} Kf5 {[%emt 0:00:18]} 48. a5 {[%emt 0:01:02]} (48. Rf2+ $18 Kg5 49. a5) 48... e3 $16 {[%emt 0:03:52]} 49. Kc2 $2 {[%emt 0:01:41]} (49. Bd4 $16 {and life is bright.} Kf4 50. a6 Rxa6 51. Bxe3+ (51. Rxe3 Bb4 $16) 51... Kf5 52. Bd4) 49... Ke4 $17 {[%emt 0:01:25][%mdl 1024] Black has strong compensation.} 50. b4 $2 {[%emt 0:00:04] [#]} (50. Re1 $17 Rc6 51. Kb2) 50... Rc6 $1 $19 {[%emt 0:00:55]} 51. Kb2 {[%emt 0:05:20]} Kd3 $1 {[%emt 0:02:31][%csl LRc3,LRe2]} 52. Re1 {[%emt 0:01:37]} e2 $1 {[%emt 0:01:20]} (52... Rxc3 53. Rxe3+ Kxe3 54. Kxc3 $18) 53. Rc1 {[%emt 0:00:50]} Bg5 {[%emt 0:01:58]} 54. b5 {[%emt 0:01:00]} Bxc1+ {[%emt 0:00:07] Weighted Error Value: White=0.67/Black=0.22 (precise)   Loses game:     	White=1     	---        Mistake:       	White=5     	Black=7      Inaccurate:     	White=3     	Black=1      OK:         	White=14    	Black=14     Best:        	White=4     	Black=4      Strong:       	White=4     	Black=2} 0-1